fUSD/lending_fUSD_20240714
["ID","MTS","AMOUNT","RATE_DAILY","PERIOD"]
[332147453,1720990253875,-500.0,0.00013978,2]
[332147455,1720990253884,-500.0,0.00013978,2]
[332147457,1720990253895,-500.0,0.00013978,2]
[332147459,1720990253904,-500.0,0.00013978,2]
[332147462,1720990253914,-500.0,0.00013978,2]
[332147464,1720990253925,-500.0,0.00013978,2]
[332147466,1720990253937,-500.0,0.00013978,2]
[332147468,1720990253947,-500.0,0.00013978,2]
[332147470,1720990253957,-500.0,0.00013978,2]
[332147472,1720990253968,-500.0,0.00013978,2]
[332147474,1720990253978,-500.0,0.00013978,2]
[332147476,1720990253988,-500.0,0.00013978,2]
[332147478,1720990253997,-228.01908745,0.00013978,2]
[332147480,1720990254007,-500.0,0.00013978,2]
[332147482,1720990254018,-500.0,0.00013978,2]
[332147484,1720990254027,-500.0,0.00013978,2]
[332147486,1720990254037,-500.0,0.00013978,2]
[332147488,1720990254047,-500.0,0.00013978,2]
[332147490,1720990254057,-500.0,0.00013978,2]
[332147492,1720990254066,-520.68135982,0.00013978,2]
[332147494,1720990254076,-500.0,0.00013978,2]
[332147497,1720990254085,-500.0,0.00013978,2]
[332147499,1720990254095,-500.0,0.00013978,2]
[332147501,1720990254105,-500.0,0.00013978,2]
[332147503,1720990254116,-411.45289015,0.00013978,2]
[332147505,1720990254128,-500.0,0.00013978,2]
[332147507,1720990254138,-500.0,0.00013978,2]
[332147509,1720990254148,-204.5707326,0.00013978,2]
[332147511,1720990254158,-500.0,0.00013978,2]
[332147513,1720990254168,-500.0,0.00013978,2]
[332147515,1720990254177,-500.0,0.00013978,2]
[332147517,1720990254187,-500.0,0.00013978,2]
[332147519,1720990254200,-500.0,0.00013978,2]
[332147521,1720990254209,-500.0,0.00013978,2]
[332147523,1720990254220,-500.0,0.00013978,2]
[332147526,1720990254229,-500.0,0.00013978,2]
[332147528,1720990254239,-500.0,0.00013978,2]
[332147529,1720990254248,-500.0,0.00013978,2]
[332147531,1720990254258,-500.0,0.00013978,2]
[332147534,1720990254269,-500.0,0.00013978,2]
[332147536,1720990254280,-500.0,0.00013978,2]
[332147538,1720990254292,-559.79,0.00013978,2]
[332147540,1720990254302,-500.0,0.00013978,2]
[332147542,1720990254313,-500.0,0.00013978,2]
[332147544,1720990254323,-500.0,0.00013978,2]
[332147547,1720990254335,-500.0,0.00013978,2]
[332147549,1720990254345,-500.0,0.00013978,2]
[332147551,1720990254354,-500.0,0.00013978,2]
[332147553,1720990254363,-500.0,0.00013978,2]
[332147555,1720990254373,-518.4,0.00013978,2]
[332147557,1720990254382,-500.0,0.00013978,2]
[332147559,1720990254392,-575.81,0.00013978,2]
[332147561,1720990254403,-500.0,0.00013978,2]
[332147563,1720990254413,-500.0,0.00013978,2]
[332147565,1720990254425,-500.0,0.00013978,2]
[332147568,1720990254436,-500.0,0.00013978,2]
[332147570,1720990254446,-536.38,0.00013978,2]
[332147572,1720990254455,-500.0,0.00013978,2]
[332147574,1720990254465,-151.0,0.00013978,2]
[332147576,1720990254476,-500.0,0.00013978,2]
[332147578,1720990254487,-500.0,0.00013978,2]
[332147580,1720990254497,-500.0,0.00013978,2]
[332147582,1720990254507,-155.92,0.00013978,2]
[332147584,1720990254518,-500.0,0.00013978,2]
[332147586,1720990254527,-500.0,0.00013978,2]
[332147588,1720990254539,-500.0,0.00013978,2]
[332147590,1720990254548,-151.0,0.00013978,2]
[332147592,1720990254558,-500.0,0.00013978,2]
[332147594,1720990254568,-500.0,0.00013978,2]
[332147597,1720990254578,-500.0,0.00013978,2]
[332147599,1720990254588,-500.0,0.00013978,2]
[332147601,1720990254598,-500.0,0.00013978,2]
[332147603,1720990254608,-294.08,0.00013978,2]
[332147605,1720990254619,-629.62347709,0.00013978,2]
[332147607,1720990254629,-221.8,0.00013978,2]
[332147609,1720990254639,-500.0,0.00013978,2]
[332147611,1720990254648,-500.0,0.00013978,2]
[332147613,1720990254657,-505.84975236,0.00013978,2]
[332147615,1720990254667,-285.04,0.00013978,2]
[332147617,1720990254676,-286.93,0.00013978,2]
[332147619,1720990254685,-500.0,0.00013978,2]
[332147621,1720990254695,-500.0,0.00013978,2]
[332147623,1720990254705,-500.0,0.00013978,2]
[332147625,1720990254715,-500.0,0.00013978,2]
[332147627,1720990254724,-563.89,0.00013978,2]
[332147629,1720990254733,-472.6714873,0.00013978,2]
[332147631,1720990254743,-500.09,0.00013978,2]
[332147633,1720990254752,-500.0,0.00013978,2]
[332147635,1720990254762,-383.61,0.00013978,2]
[332147637,1720990254771,-500.0,0.00013978,2]
[332147638,1720990254780,-250.21179911,0.00013978,2]
[332147639,1720990254789,-578.45,0.00013978,2]
[332147640,1720990254799,-500.0,0.00013978,2]
[332147641,1720990254809,-500.0,0.00013978,2]
[332147642,1720990254819,-500.0,0.00013978,2]
[332147643,1720990254829,-500.0,0.00013978,2]
[332147644,1720990254839,-500.0,0.00013978,2]
[332147646,1720990254855,-500.0,0.00013978,2]
[332147649,1720990254866,-500.0,0.00013978,2]
[332147651,1720990254878,-500.0,0.00013978,2]
[332147653,1720990254890,-500.0,0.00013978,2]
[332147655,1720990254901,-500.0,0.00013978,2]
[332147657,1720990254911,-163.97,0.00013978,2]
[332147659,1720990254922,-599.41,0.00013978,2]
[332147661,1720990254933,-151.0,0.00013978,2]
[332147663,1720990254943,-500.0,0.00013978,2]
[332147665,1720990254954,-500.0,0.00013978,2]
[332147667,1720990254964,-500.0,0.00013978,2]
[332147669,1720990254974,-500.0,0.00013978,2]
[332147671,1720990254983,-500.0,0.00013978,2]
[332147674,1720990254996,-500.0,0.00013978,2]
[332147676,1720990255007,-500.0,0.00013978,2]
[332147678,1720990255018,-632.35,0.00013978,2]
[332147680,1720990255027,-500.0,0.00013978,2]
[332147682,1720990255039,-500.0,0.00013978,2]
[332147684,1720990255050,-500.0,0.00013978,2]
[332147686,1720990255060,-500.0,0.00013978,2]
[332147688,1720990255071,-500.0,0.00013978,2]
[332147691,1720990255083,-151.0,0.00013978,2]
[332147693,1720990255093,-500.0,0.00013978,2]
[332147695,1720990255104,-500.0,0.00013978,2]
[332147697,1720990255114,-500.0,0.00013978,2]
[332147699,1720990255124,-500.0,0.00013978,2]
[332147701,1720990255134,-500.0,0.00013978,2]
[332147703,1720990255144,-500.0,0.00013978,2]
[332147705,1720990255154,-500.0,0.00013978,2]
[332147707,1720990255164,-500.0,0.00013978,2]
[332147710,1720990255174,-500.0,0.00013978,2]
[332147712,1720990255184,-500.0,0.00013978,2]
[332147714,1720990255194,-500.0,0.00013978,2]
[332147716,1720990255203,-500.0,0.00013978,2]
[332147718,1720990255214,-500.0,0.00013978,2]
[332147720,1720990255224,-500.0,0.00013978,2]
[332147722,1720990255236,-500.0,0.00013978,2]
[332147724,1720990255246,-500.0,0.00013978,2]
[332147726,1720990255257,-229.263329,0.00013978,2]
[332147745,1720990255422,-151.0,0.00013978,2]
[332147747,1720990255432,-151.0,0.00013978,2]
[332147749,1720990255445,-151.0,0.00013978,2]
[332147751,1720990255454,-151.0,0.00013978,2]
[332147753,1720990255464,-206.0,0.0001398,2]
[332147755,1720990255475,-302.0,0.0001398,2]
[332147757,1720990255484,-548722.1734066,0.00013989,2]
[332147760,1720990255500,-1255.06367634,0.00013989,2]
[332147762,1720990255511,-1570.55517767,0.00013989,2]
[332147764,1720990255522,-748.63230573,0.00013989,2]
[332147767,1720990255535,-921.33900279,0.00013989,2]
[332147769,1720990255547,-5647.01763613,0.00013989,2]
[332147771,1720990255557,-151.0,0.00013989,2]
[332147773,1720990255567,-151.0,0.00013989,2]
[332147775,1720990255576,-158.605808,0.00013989,2]
[332147777,1720990255585,-229.263329,0.00013989,2]
[332147779,1720990255595,-151.0,0.00013989,2]
[332147781,1720990255604,-222.556592,0.00013989,2]
[332147783,1720990255614,-151.0,0.00013989,2]
[332147785,1720990255624,-174.02504748,0.00013989,2]
[332147787,1720990255634,-163.90445823,0.00013989,2]
[332147789,1720990255643,-151.0,0.00013989,2]
[332147791,1720990255653,-150.0,0.00013992,2]
[332147793,1720990255663,-180.02801105,0.00013997,2]
[332147795,1720990255672,-336.15602892,0.00013999,2]
[332147796,1720990255682,-431.53343721,0.00013999,2]
[332147798,1720990255692,-36644.31002654,0.00014,2]
[332147801,1720990255714,-342.49244786,0.00014,2]
[332147804,1720990255726,-1599.08934919,0.00014,2]
[332147806,1720990255738,-873.04153788,0.00014,2]
[332147808,1720990255751,-443.07349567,0.00014,2]
[332147810,1720990255763,-650.36277005,0.00014,2]
[332147813,1720990255775,-341.65759013,0.00014,2]
[332147815,1720990255787,-9640.10867753,0.00014,2]
[332147817,1720990255798,-7091.87739909,0.00014,2]
[332147819,1720990255810,-715.36994382,0.00014,2]
[332147821,1720990255822,-286.93626806,0.00014,2]
[332147823,1720990255834,-427.18428536,0.00014,2]
[332147825,1720990255847,-537.88,0.00014,2]
[332147828,1720990255860,-768.44720034,0.00014,2]
[332147830,1720990255879,-180204.26649294,0.00014,2]
[332147847,1720990256092,-151.0,0.00013938,2]
[332147849,1720990256102,-151.0,0.00013943,2]
[332147851,1720990256111,-151.0,0.00013953,2]
[332147853,1720990256121,-151.0,0.00013968,2]
[332147855,1720990256131,-151.0,0.00013989,2]
[332147857,1720990256141,-3526.62023915,0.00014,2]
[332147859,1720990256152,-30861.97877135,0.00014,2]
[332147861,1720990256163,-3693.93006249,0.00014,2]
[332147864,1720990256175,-346.76974357,0.00014,2]
[332147866,1720990256186,-1015.91279629,0.00014,2]
[332147868,1720990256199,-1507.69660194,0.00014,2]
[332147870,1720990256210,-506.28464956,0.00014,2]
[332147872,1720990256224,-3476.2185258,0.00014,2]
[332147875,1720990256236,-430.18684934,0.00014,2]
[332147877,1720990256248,-585.79333653,0.00014,2]
[332147879,1720990256259,-3885.10398628,0.00014,2]
[332147881,1720990256270,-57440.000016,0.00014,2]
[332147884,1720990256282,-13493.39068158,0.00014,2]
[332147886,1720990256291,-9216.09121227,0.00014,2]
[332147888,1720990256306,-753.61,0.00014,2]
[332147890,1720990256317,-1568.3092,0.00014,2]
[332147893,1720990256328,-1707.0,0.00014,2]
[332147895,1720990256339,-7858.78588056,0.00014,2]
[332147897,1720990256351,-27799.89231496,0.00014,2]
[332147899,1720990256362,-11053.76194839,0.00014,2]
[332147901,1720990256373,-3172.45,0.00014,2]
[332147904,1720990256386,-473.30106261,0.00014,2]
[332147906,1720990256398,-5486.0692839,0.00014,2]
[332147908,1720990256410,-1000.5385,0.00014,2]
[332147911,1720990256429,-4349.09017876,0.00014,2]
[332147913,1720990256440,-956.17199593,0.00014,2]
[332147915,1720990256453,-553.56974129,0.00014,2]
[332147918,1720990256464,-471.01190175,0.00014,2]
[332147920,1720990256476,-430.09096335,0.00014,2]
[332147922,1720990256487,-458.27649239,0.00014,2]
[332147924,1720990256503,-123785.70194249,0.00014,2]
[332147926,1720990256514,-132188.0,0.00014,2]
[332147928,1720990256525,-2439.94300744,0.00014,2]
[332147931,1720990256537,-104446.64236568,0.00014,2]
[332147933,1720990256548,-11823.59982305,0.00014,2]
[332147935,1720990256560,-1671.17631581,0.00014,2]
[332147937,1720990256571,-1740.74654837,0.00014,2]
[332147939,1720990256582,-3222.38164255,0.00014,2]
[332147941,1720990256596,-596.79156854,0.00014,2]
[332147943,1720990256608,-6378.68035242,0.00014,2]
[332147945,1720990256619,-12571.36622906,0.00014,2]
[332147948,1720990256630,-743.62877208,0.00014,2]
[332147950,1720990256641,-15461.51814751,0.00014,2]
[332147952,1720990256652,-2353.21410219,0.00014,2]
[332147954,1720990256663,-1000.54103258,0.00014,2]
[332147956,1720990256675,-5143.26,0.00014,2]
[332149301,1720991432097,-349.70936002,0.00010272,2]
[332149302,1720991432109,-119.60063998,0.00010272,2]
[332149303,1720991432118,-462.63532002,0.00010321,2]
[332149304,1720991432129,-500.0,0.00010321,2]
[332149305,1720991432206,-719.86726175,0.00010321,2]
[332149306,1720991432216,-330.0,0.00010421,2]
[332149307,1720991432227,-1240.913191,0.00010522,2]
[332149308,1720991432236,-300.0,0.00011096,2]
[332149309,1720991432245,-956.17251472,0.00011097,2]
[332149310,1720991432263,-11160.00495294,0.00011097,2]
[332149311,1720991432273,-9186.39842429,0.00011097,2]
[332149312,1720991432283,-150.0,0.00011097,2]
[332149313,1720991432292,-891.5368913,0.00011098,2]
[332149314,1720991432302,-1055.92728241,0.00011098,2]
[332149315,1720991432312,-1253.99426123,0.00011098,2]
[332149316,1720991432321,-473.99379803,0.00011098,2]
[332149317,1720991432331,-3393.16408193,0.00011098,2]
[332149318,1720991432340,-613.01736691,0.00011098,2]
[332149319,1720991432350,-156.0,0.00011098,2]
[332149320,1720991432359,-496.10852137,0.00011197,2]
[332149321,1720991432369,-305.65831986,0.00011197,2]
[332149322,1720991432379,-294.11862641,0.00011199,2]
[332149324,1720991432388,-259.91784709,0.00011199,2]
[332149326,1720991432398,-202.34507322,0.00011199,2]
[332149328,1720991432407,-171.82,0.00012046,2]
[332149330,1720991432416,-761.3,0.00012129,2]
[332149331,1720991432426,-941.62,0.00012129,2]
[332149332,1720991432435,-250.0,0.00012156,2]
[332149334,1720991432445,-150.99,0.00012156,2]
[332149336,1720991432454,-239.64,0.00012162,2]
[332149338,1720991432463,-500.0,0.00012191,3]
[332149339,1720991432474,-420.0,0.00012192,2]
[332149340,1720991432483,-242.59992014,0.00012273,2]
[332149341,1720991432493,-157.14506663,0.00012302,2]
[332149342,1720991432502,-250.0,0.00012306,2]
[332149343,1720991432512,-200.0,0.00012312,2]
[332149344,1720991432522,-173.88799368,0.00012314,2]
[332149345,1720991432531,-155.0,0.00012314,2]
[332149346,1720991432541,-186.51762411,0.00012314,2]
[332149347,1720991432550,-2624.24139058,0.00012331,2]
[332149348,1720991432560,-23890.0,0.0001234,2]
[332149349,1720991432569,-1163.28,0.00012397,2]
[332149350,1720991432579,-1000.0,0.00012456,2]
[332149351,1720991432594,-5362.37,0.00012456,2]
[332149352,1720991432603,-4229.37,0.00012457,2]
[332149353,1720991432612,-469.31,0.00012536,2]
[332149354,1720991432622,-1441.6,0.0001276,2]
[332149355,1720991432634,-167.77,0.00012792,2]
[332149356,1720991432643,-164.48,0.00012914,2]
[332149357,1720991432653,-200.0,0.00012976,2]
[332149358,1720991432662,-1250.0,0.00013,2]
[332149359,1720991432672,-175.595959,0.00013227,2]
[332149360,1720991432682,-195.901771,0.00013227,2]
[332149361,1720991432691,-173.47,0.00013304,2]
[332149362,1720991432700,-195.901771,0.00013392,2]
[332149363,1720991432709,-587.0,0.00013396,2]
[332149364,1720991432719,-155.64807718,0.00013472,2]
[332149365,1720991432729,-955.85753929,0.00013516,2]
[332149366,1720991432739,-366.65719668,0.00013516,2]
[332149367,1720991432748,-195.901771,0.00013557,2]
[332149368,1720991432759,-1000.0,0.000136,2]
[332149369,1720991432769,-5875.227,0.00013689,2]
[332149370,1720991432778,-250.0,0.00013699,2]
[332149371,1720991432788,-219.05,0.00013699,2]
[332149372,1720991432797,-195.901771,0.00013722,2]
[332149373,1720991432806,-150.0,0.00013734,2]
[332149374,1720991432816,-500.0,0.00013789,2]
[332149375,1720991432825,-500.0,0.00013789,2]
[332149376,1720991432834,-500.0,0.00013789,2]
[332149377,1720991432843,-500.0,0.00013789,2]
[332149378,1720991432853,-500.0,0.00013789,2]
[332149379,1720991432863,-500.0,0.00013789,2]
[332149380,1720991432872,-500.0,0.00013789,2]
[332149381,1720991432882,-500.0,0.00013789,2]
[332149382,1720991432891,-500.0,0.00013789,2]
[332149383,1720991432900,-500.0,0.00013789,2]
[332149384,1720991432909,-500.0,0.00013789,2]
[332149385,1720991432919,-500.0,0.00013789,2]
[332149386,1720991432928,-500.0,0.00013789,2]
[332149387,1720991432938,-500.0,0.00013789,2]
[332149388,1720991432947,-255.23799751,0.00013789,2]
[332149389,1720991432957,-500.0,0.00013789,2]
[332149390,1720991432968,-500.0,0.00013789,2]
[332149391,1720991432977,-500.0,0.00013789,2]
[332149392,1720991432987,-500.0,0.00013789,2]
[332149393,1720991432997,-500.0,0.00013789,2]
[332149394,1720991433006,-500.0,0.00013789,2]
[332149395,1720991433015,-500.0,0.00013789,2]
[332149396,1720991433025,-500.0,0.00013789,2]
[332149397,1720991433034,-500.0,0.00013789,2]
[332149398,1720991433044,-500.0,0.00013789,2]
[332149399,1720991433054,-500.0,0.00013789,2]
[332149400,1720991433063,-371.4532339,0.00013789,2]
[332149401,1720991433073,-500.0,0.00013789,2]
[332149402,1720991433083,-500.0,0.00013789,2]
[332149403,1720991433092,-500.0,0.00013789,2]
[332149404,1720991433102,-500.0,0.00013789,2]
[332149405,1720991433111,-500.0,0.00013789,2]
[332149406,1720991433121,-500.0,0.00013789,2]
[332149407,1720991433130,-500.0,0.00013789,2]
[332149408,1720991433140,-500.0,0.00013789,2]
[332149409,1720991433149,-500.0,0.00013789,2]
[332149410,1720991433159,-500.0,0.00013789,2]
[332149411,1720991433168,-500.0,0.00013789,2]
[332149412,1720991433178,-321.65598273,0.00013789,2]
[332149413,1720991433187,-500.0,0.00013789,2]
[332149414,1720991433197,-500.0,0.00013789,2]
[332149415,1720991433207,-500.0,0.00013789,2]
[332149416,1720991433217,-500.0,0.00013789,2]
[332149417,1720991433227,-500.0,0.00013789,2]
[332149418,1720991433237,-500.0,0.00013789,2]
[332149419,1720991433247,-500.0,0.00013789,2]
[332149420,1720991433256,-318.61737649,0.00013789,2]
[332149421,1720991433265,-641.00383729,0.00013789,2]
[332149422,1720991433275,-500.0,0.00013789,2]
[332149423,1720991433285,-500.0,0.00013789,2]
[332149424,1720991433294,-500.0,0.00013789,2]
[332149425,1720991433303,-500.0,0.00013789,2]
[332149426,1720991433313,-500.0,0.00013789,2]
[332149427,1720991433323,-500.0,0.00013789,2]
[332149428,1720991433333,-500.0,0.00013789,2]
[332149429,1720991433343,-500.0,0.00013789,2]
[332149430,1720991433352,-500.0,0.00013789,2]
[332149431,1720991433362,-500.0,0.00013789,2]
[332149432,1720991433371,-500.0,0.00013789,2]
[332149433,1720991433381,-500.0,0.00013789,2]
[332149434,1720991433390,-500.0,0.00013789,2]
[332149435,1720991433399,-500.0,0.00013789,2]
[332149436,1720991433409,-500.0,0.00013789,2]
[332149437,1720991433417,-500.0,0.00013789,2]
[332149438,1720991433427,-500.0,0.00013789,2]
[332149439,1720991433437,-500.0,0.00013789,2]
[332149440,1720991433447,-500.0,0.00013789,2]
[332149441,1720991433457,-500.0,0.00013789,2]
[332149442,1720991433466,-500.0,0.00013789,2]
[332149443,1720991433481,-500.0,0.00013789,2]
[332149444,1720991433491,-500.0,0.00013789,2]
[332149445,1720991433500,-500.0,0.00013789,2]
[332149446,1720991433510,-500.0,0.00013789,2]
[332149447,1720991433520,-500.0,0.00013789,2]
[332149448,1720991433530,-500.0,0.00013789,2]
[332149449,1720991433540,-500.0,0.00013789,2]
[332149450,1720991433549,-500.0,0.00013789,2]
[332149451,1720991433559,-500.0,0.00013789,2]
[332149452,1720991433568,-500.0,0.00013789,2]
[332149453,1720991433578,-500.0,0.00013789,2]
[332149454,1720991433590,-500.0,0.00013789,2]
[332149455,1720991433600,-500.0,0.00013789,2]
[332149456,1720991433609,-500.0,0.00013789,2]
[332149457,1720991433618,-500.0,0.00013789,2]
[332149458,1720991433629,-500.0,0.00013789,2]
[332149459,1720991433639,-500.0,0.00013789,2]
[332149460,1720991433649,-500.0,0.00013789,2]
[332149461,1720991433658,-500.0,0.00013789,2]
[332149462,1720991433668,-500.0,0.00013789,2]
[332149463,1720991433677,-500.0,0.00013789,2]
[332149464,1720991433687,-500.0,0.00013789,2]
[332149465,1720991433696,-500.0,0.00013789,2]
[332149466,1720991433706,-191.13998161,0.00013789,2]
[332149467,1720991433716,-500.0,0.00013789,2]
[332149468,1720991433733,-500.0,0.00013789,2]
[332149469,1720991433743,-500.0,0.00013789,2]
[332149470,1720991433753,-500.0,0.00013789,2]
[332149471,1720991433763,-500.0,0.00013789,2]
[332149472,1720991433773,-500.0,0.00013789,2]
[332149473,1720991433783,-500.0,0.00013789,2]
[332149474,1720991433793,-500.0,0.00013789,2]
[332149475,1720991433803,-500.0,0.00013789,2]
[332149476,1720991433813,-500.0,0.00013789,2]
[332149477,1720991433823,-500.0,0.00013789,2]
[332149478,1720991433832,-500.0,0.00013789,2]
[332149479,1720991433842,-500.0,0.00013789,2]
[332149480,1720991433852,-500.0,0.00013789,2]
[332149481,1720991433862,-500.0,0.00013789,2]
[332149482,1720991433872,-500.0,0.00013789,2]
[332149483,1720991433881,-500.0,0.00013789,2]
[332149484,1720991433891,-500.0,0.00013789,2]
[332149485,1720991433901,-500.0,0.00013789,2]
[332149486,1720991433911,-500.0,0.00013789,2]
[332149487,1720991433921,-500.0,0.00013789,2]
[332149488,1720991433931,-500.0,0.00013789,2]
[332149489,1720991433940,-500.0,0.00013789,2]
[332149490,1720991433950,-500.0,0.00013789,2]
[332149491,1720991433959,-500.0,0.00013789,2]
[332149492,1720991433968,-500.0,0.00013789,2]
[332149493,1720991433980,-500.0,0.00013789,2]
[332149494,1720991433989,-500.0,0.00013789,2]
[332149495,1720991433999,-500.0,0.00013789,2]
[332149496,1720991434008,-500.0,0.00013789,2]
[332149497,1720991434017,-220.15885721,0.00013789,2]
[332149498,1720991434027,-500.0,0.00013789,2]
[332149499,1720991434036,-500.0,0.00013789,2]
[332149500,1720991434046,-500.0,0.00013789,2]
[332149501,1720991434057,-500.0,0.00013789,2]
[332149502,1720991434066,-500.0,0.00013789,2]
[332149503,1720991434076,-610.28655036,0.00013789,2]
[332149504,1720991434086,-500.0,0.00013789,2]
[332149505,1720991434096,-500.0,0.00013789,2]
[332149506,1720991434105,-500.0,0.00013789,2]
[332149507,1720991434114,-500.0,0.00013789,2]
[332149508,1720991434124,-500.0,0.00013789,2]
[332149509,1720991434133,-500.0,0.00013789,2]
[332149510,1720991434143,-500.0,0.00013789,2]
[332149511,1720991434152,-500.0,0.00013789,2]
[332149512,1720991434161,-358.16,0.00013789,2]
[332149513,1720991434170,-633.55565741,0.00013789,2]
[332149514,1720991434180,-500.0,0.00013789,2]
[332149515,1720991434189,-500.0,0.00013789,2]
[332149516,1720991434198,-500.0,0.00013789,2]
[332149517,1720991434207,-500.0,0.00013789,2]
[332149518,1720991434217,-500.0,0.00013789,2]
[332149519,1720991434228,-500.0,0.00013789,2]
[332149520,1720991434237,-500.0,0.00013789,2]
[332149521,1720991434246,-500.0,0.00013789,2]
[332149522,1720991434258,-500.0,0.00013789,2]
[332149523,1720991434268,-500.0,0.00013789,2]
[332149524,1720991434277,-500.0,0.00013789,2]
[332149525,1720991434286,-500.0,0.00013789,2]
[332149526,1720991434296,-500.0,0.00013789,2]
[332149527,1720991434306,-500.0,0.00013789,2]
[332149528,1720991434316,-500.0,0.00013789,2]
[332149529,1720991434325,-500.0,0.00013789,2]
[332149530,1720991434334,-500.0,0.00013789,2]
[332149531,1720991434344,-728.64,0.00013789,2]
[332149532,1720991434354,-500.0,0.00013789,2]
[332149533,1720991434364,-500.0,0.00013789,2]
[332149534,1720991434374,-500.0,0.00013789,2]
[332149535,1720991434383,-500.0,0.00013789,2]
[332149536,1720991434392,-653.02,0.00013789,2]
[332149537,1720991434402,-500.0,0.00013789,2]
[332149538,1720991434411,-605.849634,0.00013789,2]
[332149539,1720991434421,-954.06,0.00013789,2]
[332149540,1720991434430,-634.21,0.00013789,2]
[332149541,1720991434440,-500.0,0.00013789,2]
[332149542,1720991434450,-500.0,0.00013789,2]
[332149543,1720991434459,-619.58,0.00013789,2]
[332149544,1720991434470,-500.0,0.00013789,2]
[332149545,1720991434479,-500.0,0.00013789,2]
[332149546,1720991434489,-500.0,0.00013789,2]
[332149547,1720991434499,-500.0,0.00013789,2]
[332149548,1720991434509,-500.0,0.00013789,2]
[332149549,1720991434518,-500.0,0.00013789,2]
[332149550,1720991434529,-500.0,0.00013789,2]
[332149551,1720991434539,-500.0,0.00013789,2]
[332149552,1720991434549,-500.0,0.00013789,2]
[332149553,1720991434559,-500.0,0.00013789,2]
[332149554,1720991434568,-1268.0,0.00013789,2]
[332149555,1720991434581,-500.0,0.00013789,2]
[332149556,1720991434595,-500.0,0.00013789,2]
[332149557,1720991434605,-500.0,0.00013789,2]
[332149558,1720991434615,-500.0,0.00013789,2]
[332149559,1720991434624,-500.0,0.00013789,2]
[332149560,1720991434636,-500.0,0.00013789,2]
[332149561,1720991434645,-500.0,0.00013789,2]
[332149562,1720991434655,-500.0,0.00013789,2]
[332149563,1720991434664,-500.0,0.00013789,2]
[332149564,1720991434674,-500.0,0.00013789,2]
[332149565,1720991434684,-500.0,0.00013789,2]
[332149566,1720991434695,-500.0,0.00013789,2]
[332149567,1720991434704,-500.0,0.00013789,2]
[332149568,1720991434714,-500.0,0.00013789,2]
[332149569,1720991434725,-1223.37,0.00013789,2]
[332149570,1720991434735,-500.0,0.00013789,2]
[332149571,1720991434744,-500.0,0.00013789,2]
[332149572,1720991434754,-500.0,0.00013789,2]
[332149573,1720991434763,-1556.11,0.00013789,2]
[332149574,1720991434773,-500.0,0.00013789,2]
[332149575,1720991434783,-1043.46,0.00013789,2]
[332149576,1720991434793,-500.0,0.00013789,2]
[332149577,1720991434803,-500.0,0.00013789,2]
[332149578,1720991434813,-500.0,0.00013789,2]
[332149579,1720991434822,-500.0,0.00013789,2]